bitfinex/quotes_BTCUSD_20241223
["timestamp","ask_amount","ask_price","bid_price","bid_amount"]
[1734918082155,8.54e-05,95091.0,95074.0,0.00053967]
[1734918082156,8.54e-05,95091.0,95075.0,0.210359]
[1734918082406,0.001,95089.0,95074.0,0.00053967]
[1734918082528,0.001,95089.0,95083.0,0.420682]
[1734918082752,8.54e-05,95091.0,95083.0,0.420682]
[1734918082753,8.54e-05,95091.0,95085.0,0.210338]
[1734918082957,0.005,95089.0,95086.0,0.246791]
[1734918083159,0.005,95089.0,95087.0,0.210333]
[1734918083360,8.54e-05,95091.0,95087.0,0.210333]
[1734918083652,0.009,95089.0,95087.0,0.420666]
[1734918084086,0.009,95089.0,95087.0,0.210333]
[1734918084274,0.210332,95088.0,95083.0,0.09399835]
[1734918084400,0.210335,95086.0,95083.0,0.09399835]
[1734918084603,0.3116434,95086.0,95083.0,0.09399835]
[1734918085023,0.21034,95084.0,95083.0,0.09299835]
[1734918085252,0.3116484,95084.0,95083.0,0.09299835]
[1734918085457,0.210355,95078.0,95074.0,0.02810026]
[1734918085655,0.3116634,95078.0,95074.0,0.02810026]
[1734918085855,0.3116634,95078.0,95074.0,0.00053967]
[1734918086059,0.3116634,95078.0,95066.0,0.10603555]
[1734918086278,0.3116634,95078.0,95069.0,0.00053987]
[1734918086692,0.21037,95071.0,95069.0,0.00053987]
[1734918087142,0.210355,95077.0,95069.0,0.00053987]
[1734918087326,0.1013084,95076.0,95069.0,0.00053987]
[1734918087771,0.1012644,95076.0,95069.0,0.00053987]
[1734918087971,0.210365,95073.0,95069.0,0.00053987]
[1734918088172,0.210369,95071.0,95069.0,0.00053987]
[1734918088375,0.1013084,95070.0,95069.0,0.00153987]
[1734918088651,0.1013084,95070.0,95069.0,0.00053987]
[1734918089103,0.1013084,95070.0,95069.0,0.00353987]
[1734918089314,0.2013084,95070.0,95069.0,0.00053987]
[1734918089543,0.3703084,95070.0,95069.0,8.7e-07]
[1734918089751,0.3703084,95070.0,95045.0,0.0001708]
[1734918089752,0.420816,95053.0,95045.0,0.0001708]
[1734918089957,0.210413,95051.0,95048.0,0.00071134]
[1734918090168,0.210417,95049.0,95048.0,0.00071134]
[1734918090345,0.3117254,95049.0,95048.0,0.00071134]
[1734918091865,0.6108254,95049.0,95048.0,0.00071134]
[1734918092075,0.6575254,95049.0,95048.0,3.4e-07]
[1734918092480,0.21051,95007.0,95006.0,0.18599671]
[1734918092689,0.21051,95007.0,95006.0,0.18653755]
[1734918093125,0.3118184,95007.0,95006.0,0.18653755]
[1734918093533,0.3118184,95007.0,95006.0,0.00054084]
[1734918093969,0.210505,95010.0,95006.0,0.00054084]
[1734918094205,0.210488,95017.0,95006.0,0.00054084]
[1734918094435,0.209629,95024.0,95006.0,0.00054084]
[1734918094651,0.009,95007.0,95006.0,0.00154084]
[1734918095751,0.1013084,95023.0,95006.0,0.00054084]
[1734918095989,0.210458,95031.0,95007.0,0.2115625]
[1734918096197,0.210458,95031.0,94995.0,0.210536]
[1734918096198,0.3117854,95022.0,94991.0,0.150171]
[1734918096408,0.3117854,95022.0,94993.0,0.15]
[1734918096622,0.3117854,95022.0,94994.0,0.4533205]
[1734918096844,0.210493,95015.0,94995.0,0.229386]
[1734918097053,0.1013084,95014.0,94991.0,0.02807079]
[1734918097896,0.008,95007.0,95006.0,0.001]
[1734918098097,0.210513,95006.0,94991.0,0.02807079]
[1734918098326,0.3118214,95006.0,94991.0,0.02807079]
[1734918098705,0.1013084,95005.0,94991.0,0.02907079]
[1734918098927,0.210517,95004.0,94991.0,0.02807079]
[1734918099153,0.1013084,95004.0,94991.0,0.02807079]
[1734918099354,0.009,95006.0,94991.0,0.02907079]
[1734918099593,0.009,95006.0,94999.0,0.210528]
[1734918099741,0.009,95006.0,95001.0,0.210524]
[1734918100070,0.009,95006.0,95003.0,0.210519]
[1734918100406,0.009,95006.0,95000.0,0.13]
[1734918100584,0.009,95006.0,95001.0,0.210524]
[1734918100792,0.009,95006.0,95002.0,0.392509]
[1734918101107,0.210436,95041.0,95003.0,0.2513084]
[1734918101217,0.210438,95040.0,95010.0,0.19117819]
[1734918101422,0.210453,95033.0,95014.0,0.210495]
[1734918101645,0.210453,95033.0,95015.0,0.15]
[1734918102075,0.210459,95030.0,95015.0,0.15]
[1734918102243,0.210451,95034.0,95006.0,0.00105239]
[1734918102450,0.0454,95049.0,95019.0,0.210483]
[1734918102690,0.210438,95040.0,95019.0,0.420966]
[1734918102915,0.210438,95040.0,95019.0,0.210483]
[1734918103218,0.21044,95039.0,95019.0,0.210483]
[1734918103797,0.287725,95046.0,95025.0,0.210469]
[1734918104016,0.210438,95040.0,95014.0,0.001]
[1734918104214,0.210438,95040.0,95015.0,0.00105234]
[1734918104390,0.00953905,95031.0,95017.0,0.210488]
[1734918104831,0.210459,95030.0,95013.0,0.210497]
[1734918105029,0.210459,95030.0,95025.0,0.002]
[1734918105391,0.00053905,95031.0,95007.0,0.21051]
[1734918105392,0.1013084,95029.0,95007.0,0.21051]
[1734918105593,0.00053905,95031.0,95017.0,0.002]
[1734918105831,0.00053905,95031.0,95018.0,0.210486]
[1734918107268,0.00053905,95031.0,95024.0,0.210472]
[1734918107477,0.00053905,95031.0,95026.0,0.1294]
[1734918107856,0.00053905,95031.0,95029.0,0.15]
[1734918108170,0.00053905,95031.0,95030.0,0.57254914]
[1734918108372,0.00053905,95031.0,95030.0,0.638289]
[1734918108501,0.00053905,95031.0,95030.0,0.360459]
[1734918108704,0.00878277,95031.0,95030.0,0.46648]
[1734918109330,0.01778277,95031.0,95030.0,0.46748]
[1734918109665,0.01702672,95031.0,95030.0,0.46748]
[1734918110583,0.01702672,95031.0,95030.0,0.361459]
[1734918110784,0.01702672,95031.0,95030.0,0.211459]
[1734918111551,0.210418,95049.0,95030.0,0.420918]
[1734918111756,0.210418,95049.0,95032.0,0.210455]
[1734918112026,0.210418,95049.0,95031.0,0.00105214]
[1734918112027,0.210373,95069.0,95051.0,0.210413]
[1734918112382,0.210373,95069.0,95033.0,0.1013084]
[1734918112383,0.210389,95062.0,95033.0,0.1013084]
[1734918112581,0.210402,95056.0,95034.0,0.392598]
[1734918112789,0.210426,95046.0,95033.0,0.15]
[1734918112993,0.0013084,95055.0,95030.0,0.00105375]
[1734918113418,0.210422,95047.0,95031.0,0.210457]
[1734918113954,0.420845,95047.0,95030.0,5.375e-05]
[1734918114417,0.210435,95042.0,95030.0,5.375e-05]
[1734918114589,0.210437,95041.0,95030.0,5.375e-05]
[1734918114813,0.0756,95045.0,95030.0,5.375e-05]
[1734918115021,0.1013084,95044.0,95030.0,5.375e-05]
[1734918115381,0.420895,95036.0,95030.0,5.375e-05]
[1734918115581,0.21045,95034.0,95030.0,5.375e-05]
[1734918115785,0.210455,95032.0,95030.0,5.375e-05]
[1734918116487,0.210431,95043.0,95030.0,5.375e-05]
[1734918116671,0.210433,95042.0,95030.0,5.375e-05]
[1734918117082,0.210448,95036.0,95030.0,0.00105375]
[1734918117511,0.210448,95036.0,95030.0,5.375e-05]
[1734918118122,0.210452,95034.0,95030.0,5.375e-05]
[1734918118399,0.210455,95032.0,95030.0,5.375e-05]
[1734918118800,0.1013084,95031.0,95030.0,5.375e-05]
[1734918119031,0.1792084,95031.0,95030.0,5.375e-05]
[1734918120440,0.1792084,95031.0,95030.0,0.00305375]
[1734918120643,0.1792084,95031.0,95030.0,5.375e-05]
[1734918121215,0.1792084,95031.0,95030.0,0.00405375]
[1734918121422,0.1792084,95031.0,95030.0,5.375e-05]
[1734918121726,0.2792084,95031.0,95030.0,0.00305375]
[1734918124160,0.210535,94996.0,94995.0,0.0001712]
[1734918124367,0.210535,94996.0,94995.0,0.00071025]
[1734918124613,0.3118434,94996.0,94995.0,0.00071025]
[1734918125233,0.5118434,94996.0,94995.0,0.00071025]
[1734918125442,0.3118434,94996.0,94995.0,0.00071025]
[1734918125667,0.3128434,94996.0,94995.0,0.00671025]
[1734918126305,0.4128434,94996.0,94995.0,0.00671025]
[1734918126716,0.3128434,94996.0,94995.0,0.00671025]
[1734918126905,0.3118434,94996.0,94995.0,0.00071025]
[1734918127094,0.3128434,94996.0,94995.0,0.00671025]
[1734918127500,0.3128434,94996.0,94995.0,0.00071025]
[1734918127715,0.59613284,94996.0,94995.0,0.00071025]
[1734918128017,0.76913284,94996.0,94995.0,0.00071025]
[1734918128556,0.3178434,94996.0,94995.0,0.00071025]
[1734918129217,0.4178434,94996.0,94995.0,0.00071025]
[1734918129798,0.4118434,94996.0,94995.0,0.00071025]
[1734918130008,0.5348434,94996.0,94995.0,0.00071025]
[1734918130210,0.5398434,94996.0,94995.0,0.00071025]
[1734918130389,0.5348434,94996.0,94995.0,0.00071025]
[1734918130972,0.6360754,94996.0,94995.0,0.00071025]
[1734918131087,0.6136434,94996.0,94995.0,0.00071025]
[1734918131292,0.5136434,94996.0,94995.0,0.00071025]
[1734918131492,0.3956434,94996.0,94995.0,0.00071025]
[1734918132151,0.4956434,94996.0,94995.0,0.00071025]
[1734918132930,0.4906434,94996.0,94995.0,0.00071025]
[1734918133199,0.3906434,94996.0,94995.0,0.00071025]
[1734918133438,0.4956434,94996.0,94995.0,0.00071025]
[1734918133645,0.5956434,94996.0,94995.0,0.00071025]
[1734918133849,0.7199518,94996.0,94995.0,0.00071025]
[1734918134055,0.6226434,94996.0,94995.0,0.00071025]
[1734918135290,0.5226434,94996.0,94995.0,0.00071025]
[1734918136106,0.6226434,94996.0,94995.0,0.00071025]
[1734918136910,0.5226434,94996.0,94995.0,0.00071025]
[1734918137129,0.6226434,94996.0,94995.0,0.00071025]
[1734918137555,0.5226434,94996.0,94995.0,0.00071025]
[1734918137759,0.4996434,94996.0,94995.0,0.00071025]
[1734918138586,0.3996434,94996.0,94995.0,0.00071025]
[1734918138795,0.4906434,94996.0,94995.0,0.00071025]
[1734918139180,0.3906434,94996.0,94995.0,0.00071025]
[1734918139529,0.4906434,94996.0,94995.0,0.00071025]
[1734918140052,0.6136434,94996.0,94995.0,0.00071025]
[1734918140258,0.6176434,94996.0,94995.0,0.00071025]
[1734918140457,0.5176434,94996.0,94995.0,0.00071025]
[1734918140889,0.4176434,94996.0,94995.0,0.00071025]
[1734918141073,0.3906434,94996.0,94995.0,0.00071025]
[1734918141277,0.4946434,94996.0,94995.0,0.00071025]
[1734918141879,0.6176434,94996.0,94995.0,0.00071025]
[1734918144365,0.6176434,94996.0,94988.0,2.5e-07]
[1734918144366,0.43355,94989.0,94988.0,2.5e-07]
[1734918144575,0.5348584,94989.0,94988.0,2.5e-07]
[1734918144995,0.4118584,94989.0,94988.0,2.5e-07]
[1734918146029,0.3118584,94989.0,94988.0,2.5e-07]
[1734918146242,0.4118584,94989.0,94988.0,2.5e-07]
[1734918146803,0.4128584,94989.0,94988.0,2.5e-07]
[1734918147443,0.5358584,94989.0,94988.0,2.5e-07]
[1734918147645,0.6848584,94989.0,94988.0,2.5e-07]
[1734918147986,0.5878584,94989.0,94988.0,2.5e-07]
[1734918148330,0.6848584,94989.0,94988.0,2.5e-07]
[1734918148572,0.5848584,94989.0,94988.0,2.5e-07]
[1734918148989,0.3118584,94989.0,94988.0,2.5e-07]
[1734918149207,0.210539,94995.0,94988.0,2.5e-07]
[1734918149404,0.00053875,94996.0,94988.0,2.5e-07]
[1734918149726,0.003,94989.0,94988.0,0.07985293]
[1734918149946,0.210539,94995.0,94988.0,0.07880025]
[1734918150377,0.0020233,94989.0,94988.0,0.07880025]
[1734918150998,0.0020233,94989.0,94988.0,0.08280025]
[1734918151205,0.210537,94995.0,94988.0,0.07880025]
[1734918151622,0.19117819,95010.0,94988.0,0.08380025]
[1734918151820,0.210526,95000.0,94988.0,0.08390181]
[1734918152175,0.210522,95002.0,94988.0,0.08390181]
[1734918152797,0.210522,95002.0,94988.0,0.07890181]
[1734918153250,0.210522,95002.0,94988.0,0.08390181]
[1734918153383,0.210522,95002.0,94988.0,0.07890181]
[1734918153585,0.210539,94995.0,94988.0,0.07890181]
[1734918153785,0.1013084,95009.0,94988.0,0.07890181]
[1734918154030,0.210536,94996.0,94988.0,0.07890181]
[1734918154405,0.210488,95017.0,94988.0,0.07890181]
[1734918154607,0.210529,94999.0,94988.0,0.07890181]
[1734918154827,0.21052,95003.0,94988.0,0.07890181]
[1734918155054,0.3118284,95003.0,94988.0,0.07890181]
[1734918155221,0.1013084,95003.0,94988.0,0.07890181]
[1734918155421,0.210545,94992.0,94988.0,0.00010181]
[1734918155647,0.1013084,94991.0,94988.0,0.00010181]
[1734918155851,0.210548,94990.0,94988.0,0.00010181]
[1734918156026,0.1013084,94989.0,94988.0,0.00010181]
[1734918156247,0.210572,94979.0,94978.0,0.10561259]
[1734918156446,0.3118804,94979.0,94978.0,0.10561259]
[1734918157353,0.3118804,94979.0,94973.0,0.00070975]
[1734918157354,0.210579,94977.0,94973.0,0.00070975]
[1734918157557,0.210581,94975.0,94973.0,0.00070975]
[1734918157760,0.1013084,94974.0,94973.0,0.00070975]
[1734918159585,0.21057,94980.0,94973.0,0.00070975]
[1734918159787,0.21057,94980.0,94973.0,0.00270975]
[1734918159998,0.21057,94980.0,94973.0,0.00070975]
[1734918160194,0.210564,94983.0,94973.0,0.00070975]
[1734918160398,0.210579,94977.0,94973.0,0.00470975]
[1734918160600,0.1013084,94976.0,94973.0,0.00070975]
[1734918160808,0.210581,94975.0,94973.0,0.00070975]
[1734918161017,0.3118894,94975.0,94973.0,0.00170975]
[1734918161238,0.3118894,94975.0,94973.0,0.00070975]
[1734918162670,0.3118894,94975.0,94973.0,0.00270975]
[1734918162872,0.3118894,94975.0,94973.0,0.00070975]
[1734918163273,0.3118894,94975.0,94973.0,0.00370975]
[1734918164079,0.3118894,94975.0,94973.0,0.00070975]
[1734918164424,0.3118894,94975.0,94973.0,0.00370975]
[1734918164632,0.1013084,94974.0,94973.0,0.00370975]
[1734918165746,0.1013084,94974.0,94973.0,0.00070975]
[1734918166270,0.1013084,94974.0,94963.0,0.01676803]
[1734918166359,0.210606,94964.0,94962.0,0.000171]
[1734918167570,0.1013084,94963.0,94962.0,0.000171]
[1734918167807,0.1013084,94963.0,94962.0,0.008171]
[1734918169074,0.3038084,94963.0,94962.0,0.000171]
[1734918169420,0.39639658,94963.0,94962.0,0.008171]
[1734918169801,0.3048084,94963.0,94962.0,0.008171]
[1734918170189,0.3038084,94963.0,94962.0,0.000171]
[1734918170405,0.1013084,94963.0,94962.0,0.000171]
[1734918170614,0.1023084,94963.0,94962.0,0.000171]
[1734918172221,0.1013084,94963.0,94962.0,0.000171]
[1734918173017,0.210599,94967.0,94962.0,0.000171]
[1734918173225,0.1013084,94966.0,94962.0,0.000171]
[1734918173433,0.210603,94965.0,94962.0,0.000171]
[1734918173635,0.210608,94963.0,94962.0,0.000171]
[1734918173835,0.3139164,94963.0,94962.0,0.000171]
[1734918174062,0.3119164,94963.0,94962.0,0.000171]
[1734918176047,0.3139164,94963.0,94962.0,0.000171]
[1734918176244,0.3119164,94963.0,94962.0,0.000171]
[1734918176652,0.3129164,94963.0,94962.0,0.000171]
[1734918177061,0.3119164,94963.0,94962.0,0.000171]
[1734918177261,0.3139164,94963.0,94962.0,0.000171]
[1734918178769,0.5369164,94963.0,94962.0,0.000171]
[1734918179189,0.5349164,94963.0,94962.0,0.000171]
[1734918180057,0.5359164,94963.0,94962.0,0.000171]
[1734918180462,0.57121563,94963.0,94962.0,0.000171]
[1734918180666,0.4369164,94963.0,94962.0,0.000171]
[1734918180873,0.3139164,94963.0,94962.0,0.000171]
[1734918181085,0.4349164,94963.0,94962.0,0.000171]
[1734918181286,0.5349164,94963.0,94962.0,1e-06]
[1734918181888,0.6166164,94963.0,94962.0,1e-06]
[1734918182129,0.1,94956.0,94931.0,0.08020887]
[1734918182335,0.223,94930.0,94929.0,0.11903027]
[1734918182544,0.4743084,94930.0,94929.0,0.11903027]
[1734918182758,0.4743084,94930.0,94929.0,0.07689427]
[1734918183401,0.4743084,94930.0,94910.0,0.000591]
[1734918183402,0.2,94924.0,94923.0,0.0001712]
[1734918183624,0.2,94924.0,94922.0,4e-07]
[1734918183625,0.410697,94923.0,94922.0,4e-07]
[1734918183831,0.6850054,94923.0,94922.0,4e-07]
[1734918184247,0.5850054,94923.0,94922.0,4e-07]
[1734918184669,0.6850054,94923.0,94922.0,4e-07]
[1734918185289,0.3120054,94923.0,94922.0,4e-07]
[1734918185701,0.3120054,94923.0,94922.0,0.0010004]
[1734918185924,0.3200054,94923.0,94922.0,0.0010004]
[1734918186124,0.3120054,94923.0,94922.0,4e-07]
[1734918186317,0.3200054,94923.0,94922.0,0.0010004]
[1734918186745,0.3120054,94923.0,94922.0,4e-07]
[1734918186951,0.3200054,94923.0,94922.0,0.0010004]
[1734918187226,0.3350054,94923.0,94922.0,4e-07]
[1734918187877,0.3120054,94923.0,94922.0,4e-07]
[1734918188676,0.3200054,94923.0,94922.0,0.0010004]
[1734918189104,0.3120054,94923.0,94922.0,4e-07]
[1734918189243,0.50340492,94923.0,94922.0,0.0010004]
[1734918189445,0.90050492,94923.0,94922.0,4e-07]
[1734918189854,0.90850492,94923.0,94922.0,4e-07]
[1734918190054,0.8251054,94923.0,94922.0,4e-07]
[1734918190267,0.373,94918.0,94910.0,0.000591]
[1734918190500,0.4743084,94918.0,94917.0,1e-06]
[1734918191128,0.390645,94901.0,94900.0,0.0001712]
[1734918191334,0.5149534,94901.0,94900.0,0.0001712]
[1734918192000,0.4999534,94901.0,94900.0,0.0001712]
[1734918192434,0.50049121,94901.0,94900.0,0.0001712]
[1734918192632,0.60349121,94901.0,94900.0,0.0001712]
[1734918193846,0.210781,94886.0,94844.0,0.0752]
[1734918194146,0.210794,94879.0,94846.0,0.210866]
[1734918194360,0.3121024,94879.0,94846.0,0.210866]
[1734918194796,0.3121024,94879.0,94850.0,0.03120877]
[1734918195155,0.3121024,94879.0,94853.0,0.210851]
[1734918195367,0.3211024,94879.0,94878.0,0.0011712]
[1734918195733,0.3121024,94879.0,94878.0,0.0001712]
[1734918195844,0.3181024,94879.0,94878.0,0.0011712]
[1734918196280,0.3351024,94879.0,94878.0,0.0001712]
[1734918196494,0.3181024,94879.0,94878.0,0.0011712]
[1734918196745,0.3121024,94879.0,94878.0,0.0001712]
[1734918197420,0.41846964,94879.0,94878.0,0.0001712]
[1734918197653,0.3351024,94879.0,94878.0,0.0001712]
[1734918198349,0.4184024,94879.0,94878.0,0.0011712]
[1734918198587,0.4184024,94879.0,94878.0,0.0001712]
[1734918198790,0.5234024,94879.0,94878.0,0.0011712]
[1734918199309,0.5134024,94879.0,94878.0,0.0001712]
[1734918199563,0.6184024,94879.0,94878.0,0.0011712]
[1734918199802,0.6134024,94879.0,94878.0,0.0001712]
[1734918200027,0.3121024,94879.0,94878.0,0.0001712]
[1734918200256,0.3401024,94879.0,94878.0,0.0011712]
[1734918201249,0.3171024,94879.0,94878.0,0.0011712]
[1734918201490,0.3171024,94879.0,94878.0,0.0001712]
[1734918201491,0.3121024,94879.0,94878.0,0.0001712]
[1734918201763,0.1013084,94879.0,94878.0,0.0011712]
[1734918201963,0.1073084,94879.0,94878.0,0.0011712]
[1734918202198,0.1073084,94879.0,94878.0,0.0001712]
[1734918202418,0.1133084,94879.0,94878.0,0.0011712]
[1734918202685,0.210774,94889.0,94878.0,0.0001712]
[1734918202895,0.210777,94887.0,94878.0,0.0001712]
[1734918203118,0.006,94879.0,94878.0,0.0011712]
[1734918203324,0.1013084,94879.0,94878.0,0.0001712]
[1734918204610,0.1033084,94879.0,94878.0,0.0001712]
[1734918204825,0.1263084,94879.0,94878.0,0.0001712]
[1734918205023,0.1243084,94879.0,94878.0,0.0001712]
[1734918205224,0.1283084,94879.0,94878.0,0.0001712]
[1734918205903,0.1113084,94879.0,94878.0,0.0011712]
[1734918207880,0.1013084,94879.0,94878.0,0.0001712]
[1734918207994,0.1053084,94879.0,94878.0,0.0001712]
[1734918208198,0.1013084,94879.0,94878.0,0.0001712]
[1734918208669,0.1073084,94879.0,94878.0,0.0011712]
[1734918209008,0.1013084,94879.0,94878.0,0.0001712]
[1734918209392,0.1023084,94879.0,94878.0,0.0001712]
[1734918210962,0.1013084,94879.0,94878.0,0.0001712]
[1734918211371,0.1053084,94879.0,94878.0,0.0001712]
[1734918212191,0.1063084,94879.0,94878.0,0.0001712]
[1734918212395,0.1013084,94879.0,94878.0,0.0001712]
[1734918213218,0.1043084,94879.0,94878.0,0.0001712]
[1734918214429,0.1043084,94879.0,94878.0,0.0833712]
[1734918214634,8.56e-05,94893.0,94878.0,0.1304712]
[1734918214851,0.001,94879.0,94878.0,0.16141491]
[1734918215266,0.3120754,94892.0,94878.0,0.16141491]
[1734918215475,0.3120754,94892.0,94878.0,0.0001712]
[1734918215476,0.421577,94882.0,94878.0,0.0001712]
[1734918215582,0.1013084,94881.0,94878.0,0.0001712]
[1734918215797,0.210792,94880.0,94878.0,0.0001712]
[1734918215996,0.1013084,94879.0,94878.0,0.0001712]
[1734918216237,0.1013084,94879.0,94878.0,0.0031712]
[1734918216576,0.09988336,94879.0,94878.0,0.0031712]
[1734918217216,0.12288336,94879.0,94878.0,0.0031712]
[1734918217633,0.12288336,94879.0,94878.0,0.0001712]
[1734918217949,0.12288336,94879.0,94878.0,0.0011712]
[1734918217950,0.27288336,94879.0,94878.0,0.0011712]
[1734918218217,0.37288336,94879.0,94878.0,0.0001712]
[1734918218777,0.37788336,94879.0,94878.0,0.0011712]
[1734918219205,0.37288336,94879.0,94878.0,0.0001712]
[1734918219641,0.73615332,94879.0,94878.0,0.0011712]
[1734918219858,0.63562888,94879.0,94878.0,0.0011712]
[1734918220862,0.63062888,94879.0,94878.0,0.0001712]
[1734918221067,0.63062888,94879.0,94878.0,0.0011712]
[1734918221287,0.63562888,94879.0,94878.0,0.0011712]
[1734918221950,0.63062888,94879.0,94878.0,0.0001712]
[1734918222365,0.63662888,94879.0,94878.0,0.0011712]
[1734918222537,0.48952888,94879.0,94878.0,0.0001712]
[1734918222744,0.41172888,94879.0,94878.0,0.0001712]
[1734918223631,0.31172888,94879.0,94878.0,0.0001712]
[1734918224042,0.31972888,94879.0,94878.0,0.0011712]
[1734918224237,0.31972888,94879.0,94878.0,0.0001712]
[1734918224238,0.24988336,94879.0,94878.0,0.0001712]
[1734918224666,0.25688336,94879.0,94878.0,0.0011712]
[1734918224861,0.24988336,94879.0,94878.0,0.0001712]
[1734918225060,0.09988336,94879.0,94878.0,0.0001712]
[1734918225379,0.10688336,94879.0,94878.0,0.0011712]
[1734918225587,0.09988336,94879.0,94878.0,0.0001712]
[1734918226017,0.10588336,94879.0,94878.0,0.0011712]
[1734918226375,0.12888336,94879.0,94878.0,0.0011712]
[1734918227239,0.12288336,94879.0,94878.0,0.0001712]
[1734918227671,0.12888336,94879.0,94878.0,0.0011712]
[1734918227881,0.12288336,94879.0,94878.0,0.0001712]
[1734918228315,0.12788336,94879.0,94878.0,0.0001712]
[1734918228521,0.12288336,94879.0,94878.0,0.0005182]
[1734918228782,0.2365805,94879.0,94878.0,0.0005182]
[1734918228933,0.3905805,94879.0,94878.0,0.0005182]
[1734918229157,0.7389889,94879.0,94878.0,2e-07]
[1734918230414,0.7349889,94879.0,94878.0,2e-07]
[1734918230812,0.9262135,94879.0,94878.0,2e-07]
[1734918231035,0.583819,94868.0,94867.0,4e-07]
[1734918231239,0.71802454,94868.0,94867.0,4e-07]
[1734918231718,0.76408949,94868.0,94867.0,4e-07]
[1734918232330,0.71856235,94868.0,94867.0,4e-07]
[1734918232689,0.210892,94835.0,94827.0,0.0001712]
[1734918232894,0.3122004,94835.0,94827.0,0.0001712]
[1734918234033,0.31273788,94835.0,94827.0,0.0001712]
[1734918234555,0.10184588,94835.0,94827.0,0.0001712]
[1734918234772,0.00053748,94835.0,94833.0,0.0752]
[1734918235420,0.00053748,94835.0,94834.0,0.0021712]
[1734918235601,0.00053748,94835.0,94834.0,0.0001712]
[1734918236020,0.00053748,94835.0,94834.0,0.0021712]
[1734918236217,0.00053748,94835.0,94834.0,0.0001712]
[1734918236637,0.00053748,94835.0,94834.0,0.0011712]
[1734918238106,0.00053748,94835.0,94834.0,0.0001712]
[1734918238308,0.00053748,94835.0,94834.0,0.0021712]
[1734918238527,0.10184588,94835.0,94834.0,0.0021712]
[1734918238738,0.10184588,94835.0,94834.0,0.0001712]
[1734918238968,0.00053748,94835.0,94834.0,0.0021712]
[1734918239175,0.00053748,94835.0,94834.0,0.0001712]
[1734918239589,0.00053748,94835.0,94834.0,0.0021712]
[1734918240019,0.00053748,94835.0,94834.0,0.0001712]
[1734918240286,0.10184588,94835.0,94834.0,0.0001712]
[1734918241337,0.10184588,94835.0,94834.0,0.0021712]
[1734918241948,0.10184588,94835.0,94834.0,0.0001712]
[1734918246112,0.00053748,94835.0,94834.0,0.0001712]
[1734918246530,0.00053748,94835.0,94834.0,0.1282712]
[1734918248213,0.00053748,94835.0,94834.0,0.12932562]
[1734918248424,0.00053748,94835.0,94834.0,0.15605332]
[1734918248657,0.00053748,94835.0,94834.0,0.1549989]
[1734918248869,0.00053748,94835.0,94834.0,0.0268989]
[1734918249492,0.00153748,94835.0,94834.0,0.0308989]
[1734918249695,0.00153748,94835.0,94834.0,0.0268989]
[1734918249696,0.00053748,94835.0,94834.0,0.0268989]
[1734918250334,0.00053748,94835.0,94834.0,0.2377929]
[1734918251434,0.00153748,94835.0,94834.0,0.2417929]
[1734918251636,0.00153748,94835.0,94834.0,0.2377929]
[1734918251843,0.00153748,94835.0,94834.0,0.3128929]
[1734918252051,0.00253748,94835.0,94834.0,0.3168929]
[1734918252200,0.00053748,94835.0,94834.0,0.3128929]
[1734918252602,0.00153748,94835.0,94834.0,0.3168929]
[1734918252798,0.00053748,94835.0,94834.0,0.3128929]
[1734918253006,0.00053748,94835.0,94834.0,0.1019989]
[1734918253211,0.00153748,94835.0,94834.0,0.1059989]
[1734918253766,0.00153748,94835.0,94834.0,0.10705332]
[1734918254569,0.00053748,94835.0,94834.0,0.20305332]
[1734918254773,0.00053748,94835.0,94834.0,0.5064616]
[1734918254988,0.00153748,94835.0,94834.0,0.5054073]
[1734918255196,0.210808,94873.0,94839.0,0.632649]
[1734918255398,0.1013084,94866.0,94840.0,0.12922697]
[1734918255607,0.101394,94867.0,94841.0,0.210879]
[1734918255794,0.101394,94867.0,94842.0,0.00105419]
[1734918256030,0.101394,94867.0,94854.0,0.210849]
[1734918257362,0.101394,94867.0,94854.0,0.421698]
[1734918257812,8.56e-05,94867.0,94859.0,0.210838]
[1734918258022,8.56e-05,94867.0,94866.0,0.210823]
[1734918258655,0.1474,94907.0,94866.0,0.210823]
[1734918258656,0.210694,94924.0,94881.0,0.0757]
[1734918258870,0.29231739,94910.0,94883.0,0.0495]
[1734918259104,0.210761,94894.0,94881.0,0.0757]
[1734918259313,0.210765,94892.0,94881.0,0.00016088]
[1734918259512,0.1,94908.0,94881.0,0.00016088]
[1734918259513,0.42154,94890.0,94881.0,0.00016088]
[1734918259716,0.3120784,94890.0,94881.0,0.00016088]
[1734918260369,0.1013084,94890.0,94881.0,0.00016088]
[1734918261151,0.1013084,94890.0,94881.0,0.0237185]
[1734918261466,0.1013084,94890.0,94881.0,0.00016088]
[1734918261715,0.1013084,94890.0,94881.0,0.02383116]
[1734918261865,0.1013084,94890.0,94874.0,0.210805]
[1734918262067,0.1013084,94890.0,94874.0,0.21096591]
[1734918262292,0.3120784,94890.0,94874.0,0.21096591]
[1734918262881,0.1013084,94890.0,94874.0,0.21096591]
[1734918263135,0.210757,94896.0,94880.0,0.210791]
[1734918263314,0.1013084,94895.0,94880.0,0.210791]
[1734918264336,0.210761,94894.0,94880.0,0.210791]
[1734918264547,0.1013084,94893.0,94880.0,0.210791]
[1734918264761,0.210748,94900.0,94880.0,0.210791]
[1734918264969,0.002,94895.0,94880.0,0.210791]
[1734918265207,0.1013084,94894.0,94880.0,0.210791]
[1734918265707,0.1023084,94894.0,94880.0,0.210791]
[1734918265935,0.1023084,94894.0,94874.0,0.02374319]
[1734918265936,0.001,94894.0,94885.0,0.210779]
[1734918266127,0.21074,94904.0,94889.0,0.210771]
[1734918266346,0.002,94895.0,94889.0,0.210771]
[1734918266688,0.002,94895.0,94885.0,0.421562]
[1734918267392,0.1013084,94894.0,94873.0,0.210808]
[1734918267907,0.1013084,94894.0,94872.0,0.00016101]
[1734918268222,0.1023084,94894.0,94873.0,0.210808]
[1734918268420,0.210765,94892.0,94873.0,0.210808]
[1734918268630,0.1013084,94891.0,94873.0,0.212808]
[1734918268830,0.1013084,94891.0,94884.0,0.210781]
[1734918269186,0.210741,94904.0,94888.0,0.210773]
[1734918269388,0.1013084,94903.0,94888.0,0.210773]
[1734918269550,0.210743,94902.0,94888.0,0.210773]
[1734918269750,0.1013084,94901.0,94888.0,0.210773]
[1734918270218,8.57e-05,94895.0,94884.0,0.210783]
[1734918271010,0.210761,94894.0,94878.0,0.0816]
[1734918271380,8.57e-05,94895.0,94879.0,0.00105386]
[1734918271764,0.210761,94894.0,94884.0,0.001]
[1734918272223,8.57e-05,94895.0,94879.0,0.00105386]
[1734918272425,8.57e-05,94895.0,94878.0,0.002]
[1734918272638,8.57e-05,94895.0,94879.0,0.00105384]
[1734918272850,8.57e-05,94895.0,94881.0,0.21079]